bitfinex-derivatives/quotes_ETHF0:USTF0_20230902
["timestamp","ask_amount","ask_price","bid_price","bid_amount"]
[1693667182165,11.12625837,1641.1,1640.8,10.82285]
[1693667182468,6.85725,1640.9,1640.8,13.10874]
[1693667183169,6.85725,1640.9,1640.8,14.22480423]
[1693667183760,11.12737837,1640.9,1640.6,4.5722]
[1693667184062,2.86716352,1640.8,1640.7,8.537]
[1693667184266,12.01072352,1640.8,1640.7,8.537]
[1693667184870,2.28581,1640.9,1640.7,18.79718423]
[1693667185064,4.57174,1640.9,1640.8,8.537]
[1693667185268,4.57174,1640.9,1640.8,17.66460648]
[1693667185673,2.28587,1640.9,1640.8,17.66460648]
[1693667185874,6.85715,1641.0,1640.8,17.66460648]
[1693667186074,6.85715,1641.0,1640.9,9.65306423]
[1693667186274,6.85715,1641.0,1640.9,14.22456423]
[1693667187776,6.85715,1641.0,1640.9,16.51031423]
[1693667187972,4.57115,1641.1,1640.9,18.79606423]
[1693667188174,4.57115,1641.1,1641.0,10.80693648]
[1693667188372,4.57115,1641.1,1641.0,17.66376648]
[1693667188573,12.00940352,1641.1,1641.0,8.537]
[1693667191077,6.85661,1641.1,1641.0,14.22438423]
[1693667191868,12.00924352,1641.1,1641.0,8.537]
[1693667193783,12.00924352,1641.1,1641.0,9.65306423]
[1693667194076,12.00924352,1641.1,1641.0,8.537]
[1693667194977,12.00924352,1641.1,1640.9,8.537]
[1693667195176,1.98437837,1641.0,1640.9,8.537]
[1693667195478,11.12693837,1641.0,1640.9,8.537]
[1693667196577,2.28564,1641.1,1640.9,16.51052423]
[1693667196779,6.85689,1641.1,1641.0,8.537]
[1693667196981,9.72405352,1641.1,1641.0,17.66397648]
[1693667197276,12.00969352,1641.1,1641.0,8.537]
[1693667198283,6.85689,1641.1,1641.0,11.92300071]
[1693667198581,6.85689,1641.1,1641.0,16.49432071]
[1693667200077,12.00969352,1641.1,1641.0,13.10834]
[1693667200279,12.00969352,1641.1,1641.0,16.49434071]
[1693667200480,9.14253,1641.1,1641.0,16.49434071]
[1693667201084,12.00969352,1641.1,1641.0,16.49434071]
[1693667201880,9.14253,1641.1,1641.0,16.49434071]
[1693667202073,12.00969352,1641.1,1641.0,15.37827648]
[1693667202282,12.00969352,1641.1,1641.0,16.49434071]
[1693667202683,9.14253,1641.1,1641.0,16.49434071]
[1693667202980,12.00969352,1641.1,1641.0,8.537]
[1693667203184,12.00969352,1641.1,1640.9,8.537]
[1693667203383,1.98437837,1641.0,1640.9,8.537]
[1693667203585,11.12713837,1641.0,1640.9,8.537]
[1693667203778,11.12713837,1641.0,1640.9,9.65306423]
[1693667203979,6.85688,1641.1,1640.9,18.79638423]
[1693667204174,6.85688,1641.1,1641.0,8.537]
[1693667204380,6.85688,1641.1,1641.0,13.10834]
[1693667204781,9.72404352,1641.1,1641.0,13.10834]
[1693667204985,12.00970352,1641.1,1641.0,10.82267]
[1693667205185,12.00970352,1641.1,1641.0,8.537]
[1693667205382,12.00970352,1641.1,1640.9,8.537]
[1693667205583,1.98437837,1641.0,1640.9,8.537]
[1693667205883,11.12709837,1641.0,1640.9,20.24325947]
[1693667206088,11.12709837,1641.0,1640.9,8.537]
[1693667207186,11.12709837,1641.0,1640.9,13.10864]
[1693667207582,11.12709837,1641.0,1640.9,14.22470423]
[1693667207583,6.85704,1641.0,1640.9,14.22470423]
[1693667207885,6.85704,1641.0,1640.9,16.51052423]
[1693667208291,4.57119,1641.1,1640.9,28.21625969]
[1693667208484,2.28555,1641.1,1641.0,10.80693648]
[1693667208683,4.57107,1641.1,1641.0,15.37825648]
[1693667208890,6.85669,1641.1,1641.0,15.37825648]
[1693667209991,6.85669,1641.1,1641.0,22.32763641]
[1693667210886,6.85669,1641.1,1641.0,20.76719871]
[1693667211186,6.85669,1641.1,1641.0,32.47246836]
[1693667211990,9.14231,1641.1,1641.0,30.96702721]
[1693667212186,12.00947352,1641.1,1641.0,25.67409886]
[1693667212386,9.14231,1641.1,1641.0,26.79016309]
[1693667212585,9.14231,1641.1,1641.0,24.40661956]
[1693667212986,9.14231,1641.1,1641.0,27.52749496]
[1693667213691,9.14231,1641.1,1641.0,29.81315496]
[1693667214587,6.85637,1641.2,1641.0,36.67013496]
[1693667214890,6.85637,1641.2,1641.1,35.53792721]
[1693667216691,2.28529,1641.3,1641.1,35.53792721]
[1693667216890,6.85554,1641.4,1641.3,17.074]
[1693667217090,4.57035,1641.4,1641.3,44.12973092]
[1693667217293,4.57035,1641.4,1641.3,45.24579515]
[1693667217894,2.28516,1641.4,1641.3,47.53103515]
[1693667218092,6.85475,1641.6,1641.3,47.53103515]
[1693667218295,6.85476,1641.6,1641.5,19.36276115]
[1693667218492,6.85476,1641.6,1641.5,23.41451885]
[1693667219801,6.85476,1641.6,1641.5,20.36623317]
[1693667219997,6.85476,1641.6,1641.5,23.41379538]
[1693667220194,9.72192352,1641.6,1641.5,20.01277115]
[1693667220404,12.00688352,1641.6,1641.5,8.537]
[1693667221495,9.13972,1641.6,1641.5,11.93802423]
[1693667221701,12.00688352,1641.6,1641.5,11.93802423]
[1693667222289,12.00688352,1641.6,1641.5,8.537]
[1693667223201,12.00688352,1641.6,1641.5,11.93802423]
[1693667223600,12.00688352,1641.6,1641.5,10.82196]
[1693667224098,12.00688352,1641.6,1641.5,11.93802423]
[1693667224301,12.00688352,1641.6,1641.5,8.537]
[1693667225091,12.00688352,1641.6,1641.5,9.65306423]
[1693667225297,12.00688352,1641.6,1641.5,8.537]
[1693667226700,12.00688352,1641.6,1641.4,8.537]
[1693667226902,1.98437837,1641.5,1641.4,8.537]
[1693667227102,11.12445837,1641.5,1641.4,8.537]
[1693667227407,19.66145837,1641.5,1641.1,8.537]
[1693667228302,11.12445837,1641.5,1641.3,8.537]
[1693667228507,2.86716352,1641.4,1641.3,8.537]
[1693667228702,12.00776352,1641.4,1641.3,8.537]
[1693667229598,9.1406,1641.4,1641.3,9.65306423]
[1693667230699,6.85545,1641.4,1641.3,22.76060423]
[1693667232001,9.72261352,1641.4,1641.3,22.76060423]
[1693667232197,12.00776352,1641.4,1641.3,8.537]
[1693667233808,12.00776352,1641.4,1641.3,9.65306423]
[1693667233809,9.1406,1641.4,1641.3,9.65306423]
[1693667234004,2.28513,1641.4,1641.3,16.50887423]
[1693667234204,4.57026,1641.4,1641.3,16.50887423]
[1693667234509,9.72255352,1641.4,1641.3,16.50887423]
[1693667234701,12.00768352,1641.4,1641.3,8.537]
[1693667236998,6.85539,1641.4,1641.3,11.93833423]
[1693667237204,6.85539,1641.4,1641.3,14.22360423]
[1693667237399,6.85539,1641.4,1641.3,11.93833423]
[1693667237604,12.00768352,1641.4,1641.3,11.93833423]
[1693667237807,9.14052,1641.4,1641.3,11.93833423]
[1693667238202,12.00768352,1641.4,1641.3,8.537]
[1693667238406,12.00768352,1641.4,1641.3,17.074]
[1693667240710,6.85539,1641.4,1641.3,18.19006423]
[1693667240908,6.85539,1641.4,1641.3,22.76060423]
[1693667241114,9.14052,1641.4,1641.3,20.47533423]
[1693667241515,9.14052,1641.4,1641.3,18.19006423]
[1693667241812,12.00768352,1641.4,1641.3,18.19006423]
[1693667242310,12.00768352,1641.4,1641.0,2.4708]
[1693667242517,1.98437837,1641.3,1641.2,8.537]
[1693667242714,13.54305837,1641.3,1641.2,8.537]
[1693667244618,13.54305837,1641.3,1641.1,8.537]
[1693667244813,2.86716352,1641.2,1641.1,8.537]
[1693667245013,12.00880352,1641.2,1641.1,8.537]
[1693667248922,12.00880352,1641.2,1640.9,8.537]
[1693667249216,1.98437837,1641.1,1640.9,8.537]
[1693667249520,9.14276,1641.0,1640.9,8.537]
[1693667249717,12.00992352,1641.0,1640.9,8.537]
[1693667250822,9.14276,1641.0,1640.9,9.65306423]
[1693667251022,12.00992352,1641.0,1640.9,9.65306423]
[1693667251320,12.00992352,1641.0,1640.9,8.537]
[1693667251724,12.00992352,1641.0,1640.9,9.65306423]
[1693667251924,6.85707,1641.0,1640.9,14.22472423]
[1693667252221,6.85707,1641.0,1640.9,16.51055423]
[1693667253716,2.28569,1641.0,1640.9,16.51055423]
[1693667253913,4.57129,1641.1,1640.9,16.51055423]
[1693667254114,6.85695,1641.1,1641.0,10.80693648]
[1693667254423,6.85695,1641.1,1641.0,17.66400648]
[1693667256823,6.85695,1641.1,1641.0,10.80693648]
[1693667257031,12.00977352,1641.1,1641.0,8.537]
[1693667259724,12.00977352,1641.1,1641.0,9.65306423]
[1693667259924,12.00977352,1641.1,1641.0,11.93876423]
[1693667259925,9.14261,1641.1,1641.0,11.93876423]
[1693667260226,6.85695,1641.1,1641.0,16.51016423]
[1693667260630,4.57101,1641.2,1641.0,18.79586423]
[1693667260834,6.85652,1641.2,1641.1,10.80693648]
[1693667261031,6.85652,1641.2,1641.1,17.66361648]
[1693667261737,4.57099,1641.2,1641.1,17.66361648]
[1693667262334,6.85647,1641.2,1641.1,17.66361648]
[1693667263335,9.72363352,1641.2,1641.1,15.37805648]
[1693667263733,6.85647,1641.2,1641.1,15.37805648]
[1693667265232,6.85647,1641.2,1641.1,8.537]
[1693667265233,12.00911352,1641.2,1641.1,8.537]
[1693667267330,12.00911352,1641.2,1640.8,2.4306]
[1693667267533,1.98437837,1641.1,1640.7,2.5618]
[1693667267736,1.98437837,1641.1,1640.6,0.49895735]
[1693667267737,13.80735,1641.0,1640.8,8.537]
[1693667267938,1.98437837,1640.9,1640.8,8.537]
[1693667268139,11.12769837,1640.9,1640.8,8.537]
[1693667271641,6.85749,1640.9,1640.8,14.22504423]
[1693667271946,12.01050352,1640.9,1640.8,9.65306423]
[1693667272343,9.14334,1640.9,1640.8,9.65306423]
[1693667272539,9.14334,1640.9,1640.8,14.22502423]
[1693667272744,2.28583,1640.9,1640.8,25.04800423]
[1693667273145,2.28583,1640.9,1640.8,27.33398423]
[1693667273950,4.57166,1640.9,1640.8,27.33398423]
[1693667275350,4.5712,1641.1,1640.8,27.33398423]
[1693667275545,4.5712,1641.1,1641.0,8.537]
[1693667275749,6.85682,1641.1,1641.0,16.51007423]
[1693667276748,2.28504,1641.5,1641.3,8.537]
[1693667276945,0.7904,1641.9,1641.4,21.06344071]
[1693667277245,6.85429,1641.7,1641.4,12.52644071]
[1693667277452,4.5695,1641.7,1641.6,15.39155]
[1693667277755,2.28471,1641.7,1641.6,21.06240071]
[1693667277956,4.56942,1641.7,1641.6,21.06240071]
[1693667280149,3.0749,1641.9,1641.8,8.537]
[1693667280357,7.64399,1641.9,1641.8,25.02916071]
[1693667281348,12.79571352,1641.9,1641.8,8.537]
[1693667287259,12.79571352,1641.9,1641.6,10.82176]
[1693667287457,1.98437837,1641.8,1641.6,10.82176]
[1693667287749,11.12265837,1641.8,1641.6,15.37654648]
[1693667287952,13.75125837,1641.8,1641.6,15.37654648]
[1693667288149,13.75125837,1641.8,1641.6,16.49261071]
[1693667289661,2.86716352,1641.7,1641.6,16.49261071]
[1693667289869,9.72129352,1641.7,1641.6,13.10661]
[1693667290961,6.85413,1641.7,1641.6,14.22267423]
[1693667292059,9.72129352,1641.7,1641.6,14.22267423]
[1693667292259,6.85413,1641.7,1641.6,14.22267423]
[1693667292459,9.72129352,1641.7,1641.6,14.22267423]
[1693667292653,9.72129352,1641.7,1641.6,10.82176]
[1693667292856,12.00600352,1641.7,1641.6,10.82185]
[1693667293056,12.00600352,1641.7,1641.6,11.93791423]
[1693667293254,12.00600352,1641.7,1641.6,8.537]
[1693667294359,9.13884,1641.7,1641.6,14.22276423]
[1693667294560,6.85413,1641.7,1641.6,14.22276423]
[1693667296559,9.72129352,1641.7,1641.6,14.22276423]
[1693667296765,6.85413,1641.7,1641.6,14.22276423]
[1693667297362,6.85413,1641.7,1641.6,15.74146423]
[1693667297363,2.28471,1641.7,1641.6,15.74146423]
[1693667297665,4.56942,1641.7,1641.6,15.74146423]
[1693667297865,9.72129352,1641.7,1641.6,7.77085]
[1693667298056,12.00600352,1641.7,1641.6,5.486]
[1693667298662,12.00600352,1641.7,1641.6,7.77085]
[1693667298862,12.00600352,1641.7,1641.6,5.486]
[1693667299563,12.07932354,1641.7,1641.6,5.486]
[1693667299763,12.07932354,1641.7,1641.6,7.77085]
[1693667299962,12.07932354,1641.7,1641.6,10.0557]
[1693667300159,9.79461354,1641.7,1641.6,10.0557]
[1693667300363,9.79461354,1641.7,1641.6,11.17176423]
[1693667300763,4.64274002,1641.7,1641.6,13.45661423]
[1693667301359,6.92745002,1641.7,1641.6,13.45661423]
[1693667301760,5.98546661,1642.2,1641.8,5.486]
[1693667301761,2.2845,1641.9,1641.8,5.486]
[1693667302064,0.37529913,1642.4,1641.8,23.49628071]
[1693667302065,2.28436,1642.0,1641.8,23.49628071]
[1693667302263,2.28443,1641.9,1641.8,18.01028071]
[1693667302460,2.28443,1641.9,1641.8,23.49628071]
[1693667302965,4.56886,1641.9,1641.8,23.49628071]
[1693667303365,12.00488352,1641.9,1641.8,5.486]
[1693667305162,9.13772,1641.9,1641.8,11.15657071]
[1693667305466,6.85329,1641.9,1641.8,13.44114071]
[1693667305767,9.13772,1641.9,1641.8,11.15657071]
[1693667306164,9.13772,1641.9,1641.8,8.87200071]
[1693667306973,12.00488352,1641.9,1641.8,8.87200071]
[1693667307173,9.13772,1641.9,1641.8,8.87200071]
[1693667307369,9.13772,1641.9,1641.8,11.91700071]
[1693667307572,12.00488352,1641.9,1641.8,11.91700071]
[1693667307762,9.13772,1641.9,1641.8,11.91700071]
[1693667307969,9.13772,1641.9,1641.8,10.80093648]
[1693667308271,12.00488352,1641.9,1641.8,8.531]
[1693667309871,12.00488352,1641.9,1641.8,9.64706423]
[1693667310266,12.00488352,1641.9,1641.8,8.531]
[1693667311075,12.00488352,1641.9,1641.8,9.64706423]
[1693667311576,12.00488352,1641.9,1641.8,8.531]
[1693667311875,12.00488352,1641.9,1641.8,8.53468522]
[1693667312076,12.00488352,1641.9,1641.8,9.65074945]
[1693667312476,12.00488352,1641.9,1641.8,8.53468522]
[1693667317680,14.40788352,1641.9,1641.8,8.53468522]
[1693667322587,14.40788352,1641.9,1641.8,0.00368522]
[1693667322786,14.90567407,1641.9,1641.8,0.00368522]
[1693667339095,1.98437837,1641.8,1641.2,2.2853]
[1693667339297,5.486,1641.5,1641.2,5.486]
[1693667339490,12.00760352,1641.4,1641.2,5.486]
[1693667339802,4.57013,1641.5,1641.3,10.972]
[1693667340097,6.85514,1641.5,1641.4,15.72733071]
[1693667340894,12.00731352,1641.5,1641.4,8.87200071]
[1693667341095,12.00731352,1641.5,1641.4,11.15715071]
[1693667341302,12.00731352,1641.5,1641.4,10.04104648]
[1693667341600,12.00731352,1641.5,1641.4,10.05622]
[1693667341797,12.00731352,1641.5,1641.4,5.486]
[1693667342189,12.00731352,1641.5,1641.4,7.77111]
[1693667342398,12.00731352,1641.5,1641.4,10.05622]
[1693667343004,12.00731352,1641.5,1641.4,11.17228423]
[1693667343200,9.14015,1641.5,1641.4,11.17228423]
[1693667343607,12.00731352,1641.5,1641.4,5.486]
[1693667345897,9.14015,1641.5,1641.4,8.88715423]
[1693667346098,12.00731352,1641.5,1641.4,11.17224423]
[1693667346405,12.00731352,1641.5,1641.4,10.05618]
[1693667346606,12.00731352,1641.5,1641.4,11.17224423]
[1693667346806,6.85508,1641.5,1641.4,13.45733423]
[1693667347599,12.00725352,1641.5,1641.4,5.486]
[1693667351006,9.14009,1641.5,1641.4,8.88719423]
[1693667351204,12.00725352,1641.5,1641.4,8.88719423]
[1693667351706,12.00725352,1641.5,1641.4,5.486]
[1693667352295,12.00725352,1641.5,1641.4,8.535]
[1693667353603,12.00725352,1641.5,1641.3,8.535]
[1693667354001,13.99163189,1641.5,1641.3,8.535]
[1693667358204,8.535,1641.4,1640.8,2.28587]
[1693667358405,8.535,1641.1,1640.7,8.535]
[1693667358600,11.12717837,1641.0,1640.7,13.10705]
[1693667358800,2.92806352,1640.9,1640.8,1.11606423]
[1693667359007,12.07142352,1640.9,1640.8,1.11606423]
[1693667359702,6.85752,1640.9,1640.8,11.93704423]
[1693667359897,6.85752,1640.9,1640.8,14.22302423]
[1693667360601,4.57168,1640.9,1640.8,16.50900423]
[1693667360805,4.57151,1641.0,1640.8,18.79498423]
[1693667361002,4.57151,1641.0,1640.9,10.80493648]
[1693667361303,4.57151,1641.0,1640.9,17.66245648]
[1693667361700,6.85732,1641.0,1640.9,17.66245648]
[1693667364104,12.01029352,1641.0,1640.9,8.535]
[1693667365211,12.01029352,1641.0,1640.9,14.22274423]
[1693667365606,12.01029352,1641.0,1640.9,13.10668]
[1693667365801,6.85732,1641.0,1640.9,14.22274423]
[1693667366010,2.2857,1641.0,1640.9,18.79442423]
[1693667366310,4.57145,1641.0,1640.9,18.79442423]
[1693667366911,7.43861352,1641.0,1640.9,18.79442423]
[1693667367906,7.43861352,1641.0,1640.9,15.39252]
[1693667368107,12.01011352,1641.0,1640.9,8.535]
[1693667368310,12.07101352,1641.0,1640.9,8.535]
[1693667368510,14.52691352,1641.0,1640.9,8.535]
[1693667368711,14.52691352,1641.0,1640.9,10.82084]
[1693667369805,6.85693,1641.1,1640.9,18.79442423]
[1693667370014,2.2857,1641.0,1640.9,10.25942423]
[1693667370316,6.8571,1641.0,1640.9,21.06436071]
[1693667370906,6.85642,1641.2,1641.0,8.535]
[1693667371103,6.85642,1641.2,1641.1,18.77768071]
[1693667371308,4.57092,1641.2,1641.1,18.77768071]
[1693667373318,6.85642,1641.2,1641.1,18.77768071]
[1693667374615,9.72358352,1641.2,1641.1,15.37605648]
[1693667375015,12.16498352,1641.2,1641.1,15.37605648]
[1693667375215,12.16498352,1641.2,1641.1,16.49212071]
[1693667376617,12.16498352,1641.2,1641.1,18.77768071]
[1693667376918,9.29782,1641.2,1641.1,18.77768071]
[1693667377111,12.16498352,1641.2,1641.1,16.49213071]
[1693667377312,12.16498352,1641.2,1641.1,13.44413071]
[1693667377610,9.29782,1641.2,1641.1,15.72970071]
[1693667378415,4.72682,1641.2,1641.1,18.01527071]
[1693667378714,9.29766,1641.2,1641.1,18.01527071]
[1693667378912,12.16482352,1641.2,1641.1,15.72970071]
[1693667379808,9.29766,1641.2,1641.1,15.72970071]
[1693667380215,12.16482352,1641.2,1641.1,15.72970071]
[1693667381417,2.4414,1641.2,1641.1,23.50227071]
[1693667381613,7.01226,1641.2,1641.1,23.50227071]
[1693667384618,6.85569,1641.4,1641.1,33.50227071]
[1693667384821,2.28522,1641.4,1641.3,5.487]
[1693667385020,9.30358,1641.5,1641.3,18.01412071]
[1693667385324,7.01845,1641.5,1641.4,12.34242]
[1693667386513,7.01845,1641.5,1641.4,14.62756]
[1693667387425,2.4483,1641.5,1641.4,14.62756]
[1693667387623,4.7333,1641.5,1641.4,14.62756]
[1693667388020,2.4483,1641.5,1641.4,14.62756]
[1693667388228,4.56959,1641.7,1641.4,14.62756]
[1693667388424,4.56959,1641.7,1641.6,5.487]
[1693667388619,2.4539,1641.8,1641.6,14.62644]
[1693667388821,3.45436989,1642.3,1641.7,8.87300071]
[1693667389022,9.30625,1642.2,1642.1,5.487]
[1693667389216,9.30625,1642.2,1642.1,10.05534]
[1693667389418,6.85235,1642.2,1642.1,15.72551071]
[1693667389621,6.24315,1642.2,1642.1,13.44134071]
[1693667389928,11.39447352,1642.2,1642.1,12.32527648]
[1693667390130,11.39447352,1642.2,1642.1,5.487]
[1693667390423,9.13724,1642.0,1641.8,6.85356]
[1693667390617,9.72051352,1641.9,1641.8,6.83902648]
[1693667390819,9.72051352,1641.9,1641.8,15.72668071]
[1693667391425,9.72051352,1641.9,1641.8,14.61061648]
[1693667392021,9.72051352,1641.9,1641.8,12.32602648]
[1693667392218,13.98934189,1641.9,1641.8,5.487]
[1693667392428,13.98934189,1641.9,1641.4,2.5358]
[1693667392429,19.47634189,1641.9,1641.5,5.487]
[1693667392728,2.3918,1641.8,1641.5,10.05697]
[1693667392929,13.99038189,1641.7,1641.5,10.05697]
[1693667393124,13.99038189,1641.7,1641.5,11.17303423]
[1693667393327,4.56942,1641.7,1641.6,5.487]
[1693667393523,2.28471,1641.7,1641.6,14.62652]
[1693667393725,4.56945,1641.7,1641.6,14.62652]
[1693667394627,2.28473,1641.7,1641.6,14.62652]
[1693667395023,7.43662352,1641.7,1641.6,12.34164]
[1693667395330,2.3918,1641.8,1641.6,15.74258423]
[1693667395530,2.3918,1641.8,1641.7,7.75693648]
[1693667395824,12.11276352,1641.8,1641.6,2.2848]
[1693667396019,12.11276352,1641.8,1641.4,2.28504]
[1693667396020,5.487,1641.7,1641.4,7.77204]
[1693667396224,6.85461,1641.6,1641.5,3.40104423]
[1693667396423,9.72177352,1641.6,1641.5,2.28498]
[1693667396729,9.72177352,1641.6,1641.5,7.77198]
[1693667397024,12.00664352,1641.6,1641.5,8.88804423]
[1693667397233,12.00664352,1641.6,1641.5,10.81998]
[1693667397919,12.00664352,1641.6,1641.5,8.535]
[1693667398431,12.00664352,1641.6,1641.4,4.57018]
[1693667398633,2.6242,1641.5,1641.4,4.57018]
[1693667398823,9.47923,1641.5,1641.4,5.68624423]
[1693667399332,13.74861837,1641.5,1641.3,13.09018648]
[1693667399625,13.74861837,1641.5,1641.3,18.77675071]
[1693667400032,16.61578189,1641.5,1641.3,18.77675071]
[1693667400826,13.74861837,1641.5,1641.3,18.77675071]
[1693667401033,11.76424,1641.5,1641.4,8.535]
[1693667401226,11.76424,1641.5,1641.4,13.10528]
[1693667401423,14.63140352,1641.5,1641.4,13.10528]
[1693667402730,14.63140352,1641.5,1641.4,10.82014]
[1693667402927,23.16640352,1641.5,1641.2,0.48832701]
[1693667403232,9.14112,1641.3,1641.1,13.10604]
[1693667403424,2.86716352,1641.2,1641.1,13.10604]
[1693667403628,12.23592352,1641.2,1641.1,13.10604]
[1693667403824,16.50572189,1641.2,1641.1,8.535]
[1693667404131,16.50572189,1641.2,1641.1,10.82056]
[1693667404532,16.50572189,1641.2,1641.1,2.28556]
[1693667405927,16.50572189,1641.2,1641.0,13.10628]
[1693667406129,0.0609,1641.0,1640.9,13.10653]
[1693667406331,9.78516352,1641.0,1640.9,15.39229]
[1693667406535,9.72426352,1641.0,1640.9,15.39229]
[1693667406727,9.78516352,1641.0,1640.9,10.82075]
[1693667406928,12.00996352,1641.0,1640.9,10.82084]
[1693667407329,12.07086352,1641.0,1640.9,10.82084]
[1693667407629,12.00996352,1641.0,1640.9,10.82084]
[1693667407931,12.00996352,1641.0,1640.7,8.535]
[1693667408136,4.58597837,1640.9,1640.7,8.535]
[1693667408434,12.07198352,1640.8,1640.7,13.10714]
[1693667408630,12.01108352,1640.8,1640.7,13.10714]
[1693667408928,12.07198352,1640.8,1640.7,13.10714]
[1693667409137,4.8875,1640.9,1640.7,18.79544423]
[1693667409335,4.8875,1640.9,1640.8,8.535]
[1693667409534,9.45938,1640.9,1640.8,15.39294]
[1693667409834,9.45938,1640.9,1640.8,17.66287648]
[1693667412229,9.45938,1640.9,1640.8,15.37689648]
[1693667413837,12.32654352,1640.9,1640.8,15.37689648]
[1693667414138,14.61250352,1640.9,1640.8,13.10696]
[1693667416434,14.61250352,1640.9,1640.8,10.82098]
[1693667417539,14.61250352,1640.9,1640.8,13.10696]
[1693667419339,14.61250352,1640.9,1640.8,10.82098]
[1693667419734,14.61250352,1640.9,1640.8,13.10696]
[1693667422244,14.61250352,1640.9,1640.8,10.06096]
[1693667424031,20.10150352,1640.9,1640.7,5.489]
[1693667424243,1.98437837,1640.8,1640.7,5.489]
[1693667424441,11.12829837,1640.8,1640.7,5.489]
[1693667425336,16.61729837,1640.8,1640.5,10.54240396]
[1693667425537,6.85875,1640.6,1640.5,12.82874396]
[1693667425742,6.85875,1640.6,1640.5,12.83637178]
[1693667425743,8.84312837,1640.6,1640.5,12.83637178]
[1693667425937,11.28332837,1640.6,1640.5,12.35564782]
[1693667428738,13.56957837,1640.6,1640.5,7.78296782]
[1693667428940,13.56957837,1640.6,1640.5,10.06935782]
[1693667429141,13.56957837,1640.6,1640.5,12.35574782]
[1693667429543,2.4402,1640.6,1640.5,14.64213782]
[1693667430043,2.4402,1640.6,1640.5,15.75820205]
[1693667430235,4.72645,1640.6,1640.5,15.75820205]
[1693667430437,7.0127,1640.6,1640.5,15.75820205]
[1693667435244,7.0127,1640.6,1640.5,0.00762782]
[1693667435245,14.45238352,1640.6,1640.5,0.00762782]
[1693667435435,20.00228352,1640.6,1640.5,0.00762782]
[1693667435639,0.0609,1640.2,1640.1,2.28685]
[1693667435843,9.78849352,1640.2,1640.1,10.0628]
[1693667436148,14.05968189,1640.2,1640.1,10.0628]
[1693667436337,16.47028189,1640.2,1640.1,10.0628]
[1693667436543,16.53118189,1640.2,1640.1,12.34975]
[1693667436740,16.53118189,1640.2,1640.1,10.0628]
[1693667437343,14.24437189,1640.2,1640.1,12.34975]
[1693667439544,16.53118189,1640.2,1640.1,10.0628]
[1693667439947,16.53118189,1640.2,1640.1,2.28685]
[1693667440549,16.53118189,1640.2,1640.1,4.5738]
[1693667441243,16.53118189,1640.2,1640.1,7.97681423]
[1693667441545,11.37720837,1640.2,1640.1,13.46581423]
[1693667441846,9.39283,1640.2,1640.1,13.46581423]
[1693667442548,12.25999352,1640.2,1640.1,13.46581423]
[1693667442945,9.39283,1640.2,1640.1,13.46581423]
[1693667443349,12.25999352,1640.2,1640.1,13.46581423]
[1693667443747,12.25999352,1640.2,1640.1,13.47104314]
[1693667444454,12.25999352,1640.2,1640.1,12.35497891]
[1693667444751,11.34510537,1640.2,1640.1,13.47104314]
[1693667445352,11.34510537,1640.2,1640.1,12.35497891]
[1693667445956,11.34510537,1640.2,1640.1,13.939426]
[1693667446256,11.34510537,1640.2,1640.1,15.05549023]
[1693667447155,11.34510537,1640.2,1640.1,13.939426]
[1693667447755,8.47794185,1640.2,1640.1,15.05549023]
[1693667448157,11.34510537,1640.2,1640.1,15.05549023]
[1693667448453,6.19113185,1640.2,1640.1,18.1051665]
[1693667448751,6.19113185,1640.2,1640.1,20.3921165]
[1693667449458,6.19113185,1640.2,1640.1,22.76878713]
[1693667449657,11.34510537,1640.2,1640.1,20.48183713]
[1693667449957,11.34510537,1640.2,1640.1,13.47104314]
[1693667450354,11.34510537,1640.2,1640.1,15.05549023]
[1693667450749,13.63191537,1640.2,1640.1,11.652476]
[1693667450955,13.63191537,1640.2,1640.1,10.06802891]
[1693667452061,13.63191537,1640.2,1640.1,11.18409314]
[1693667452456,13.63191537,1640.2,1640.1,10.06802891]
[1693667452659,14.55243021,1640.2,1640.1,10.06802891]
[1693667453165,14.55243021,1640.2,1640.1,12.35497891]
[1693667453668,8.47794185,1640.2,1640.1,13.47104314]
[1693667454258,11.34510537,1640.2,1640.1,13.47104314]
[1693667454459,11.34510537,1640.2,1640.1,12.35497891]
[1693667454661,11.34510537,1640.2,1640.1,13.47104314]
[1693667455263,11.34510537,1640.2,1640.1,12.35497891]
[1693667455859,11.34510537,1640.2,1640.1,13.47104314]
[1693667457972,8.47794185,1640.2,1640.1,13.47104314]
[1693667458168,8.41704185,1640.2,1640.1,13.47104314]
[1693667459261,8.41704185,1640.2,1640.1,6.61029314]
[1693667459461,11.34520537,1640.2,1640.1,10.06812891]
[1693667459868,13.63201537,1640.2,1640.1,12.35507891]
[1693667460574,11.34520537,1640.2,1640.1,12.35507891]
[1693667464068,8.47804185,1640.2,1640.1,13.47114314]
[1693667464262,8.47804185,1640.2,1640.1,15.75809314]
[1693667466075,8.47804185,1640.2,1640.1,13.47114314]
[1693667467177,11.34520537,1640.2,1640.1,13.47114314]
[1693667470378,11.34520537,1640.2,1640.1,5.49422891]
[1693667470379,5.39966352,1640.2,1640.1,5.49422891]
[1693667474679,2.5325,1640.2,1640.1,6.61029314]
[1693667477779,0.50003049,1640.3,1640.1,6.61029314]
[1693667477984,0.061,1640.4,1640.2,7.75893648]
[1693667478188,0.061,1640.4,1640.3,6.60506423]
[1693667478388,0.56043871,1640.6,1640.3,6.60506423]
[1693667478587,2.5545,1640.7,1640.5,5.489]
[1693667478787,2.5545,1640.7,1640.6,5.489]
[1693667479386,2.5545,1640.7,1640.6,7.75893648]
[1693667480489,3.03238798,1640.7,1640.6,7.75893648]
[1693667481383,3.09338798,1640.7,1640.6,7.75893648]
[1693667481580,2.5545,1640.7,1640.6,7.75893648]
[1693667481780,2.6022,1641.0,1640.6,7.75893648]
[1693667482087,2.4758,1640.9,1640.6,2.26993648]
[1693667482289,0.061,1640.8,1640.7,1.11606423]
[1693667482495,2.4758,1640.9,1640.7,6.60506423]
[1693667482687,2.4758,1640.9,1640.8,7.75893648]
[1693667483984,2.5368,1640.9,1640.8,7.75893648]
[1693667484784,2.4758,1640.9,1640.8,7.75893648]
[1693667485086,2.4758,1640.9,1640.8,5.489]
[1693667485295,5.40396352,1640.9,1640.8,5.489]
[1693667487387,5.34296352,1640.9,1640.8,5.489]